[Event "GER-ch Youth-U14w 2022"]
[Site "Willingen"]
[Date "2022.06.06"]
[Round "3.3"]
[White "Reich, Elisabeth"]
[Black "Braeutigam, Katerina"]
[Result "1-0"]
[ECO "B10"]
[WhiteElo "1457"]
[BlackElo "1860"]
[Annotator "NA RC COMBH"]
[PlyCount "111"]
[EventDate "2022.06.05"]
[EventType "swiss"]
[EventRounds "9"]
[EventCountry "GER"]
[SourceTitle "playchess.com"]
[Source "ChessBase"]
[SourceQuality "1"]
[TimeControl "40/4500+30:900+30"]

1. e4 {[%emt 0:00:00]} c6 {[%emt 0:00:00]} 2. d3 {[%emt 0:00:00]} d5 {[%emt 0:00:00]} 3. Nd2 {[%emt 0:00:00]} e5 {[%emt 0:00:00]} 4. Ngf3 {[%emt 0:00:00]} Bd6 {[%emt 0:00:00]} 5. g3 {[%emt 0:00:00]} Nf6 {[%emt 0:00:00]} 6. Bg2 {[%emt 0:00:00]} O-O {[%emt 0:00:00]} 7. O-O {[%emt 0:00:00]} Nbd7 {[%emt 0:00:00]} 8. b3 {[%emt 0:00:00]} Re8 {[%emt 0:00:00]} 9. Bb2 {[%emt 0:00:00]} Nf8 {[%emt 0:00:00]} 10. Re1 {[%emt 0:00:00]} d4 {[%emt 0:00:00]} 11. c3 {[%emt 0:00:00]} c5 {[%emt 0:07:35]} 12. Nc4 {[%emt 0:00:00]} dxc3 {[%emt 0:29:29]} 13. Bxc3 {[%emt 0:00:00]} Ng6 {[%emt 0:00:17]} 14. a4 {[%emt 0:00:32]} b6 {[%emt 0:11:13]} 15. Qc2 {[%emt 0:05:27]} Rb8 {[%emt 0:04:06]} 16. h3 {[%emt 0:10:56]} a6 {[%emt 0:01:42]} 17. Nh2 {[%emt 0:09:44]} b5 {[%emt 0:07:49]} 18. axb5 {[%emt 0:00:56]} axb5 {[%emt 0:00:06]} 19. Ba5 {[%emt 0:03:50]} Bc7 {[%emt 0:05:04]} 20. Bxc7 {[%emt 0:00:52]} Qxc7 {[%emt 0:00:01]} 21. Ne3 {[%emt 0:01:19]} Be6 {[%emt 0:04:05]} 22. Ra3 {[%emt 0:04:44]} Rec8 {[%emt 0:08:53]} 23. Rea1 {[%emt 0:00:45]} Qd7 {[%emt 0:02:03]} 24. h4 {[%emt 0:01:00]} Ne7 {[%emt 0:03:45]} 25. Ra7 {[%emt 0:01:01]} Rb7 {[%emt 0:00:35]} 26. Rxb7 {[%emt 0:00:27]} Qxb7 {[%emt 0:00:00]} 27. Nf3 {[%emt 0:01:06]} Qb8 {[%emt 0:01:33]} 28. Qb2 {[%emt 0:01:11]} Nc6 {[%emt 0:00:35]} 29. Rc1 {[%emt 0:00:47]} Nd7 {[%emt 0:00:17]} 30. Nc2 {[%emt 0:00:43]} Qd6 {[%emt 0:00:30]} 31. Nce1 {[%emt 0:00:36]} Nb4 {[%emt 0:00:33]} 32. Bf1 {[%emt 0:01:46]} f6 {[%emt 0:00:17]} 33. Ra1 {[%emt 0:00:23]} Nb8 {[%emt 0:00:41]} 34. Qc3 {[%emt 0:01:19]} Qd7 {[%emt 0:00:35]} 35. Nc2 {[%emt 0:00:34]} N8a6 {[%emt 0:00:29]} 36. Nfe1 {[%emt 0:00:52]} Qf7 {[%emt 0:00:25]} 37. Nxb4 {[%emt 0:01:02]} Nxb4 {[%emt 0:00:11]} 38. Ra3 {[%emt 0:01:43]} Qe7 {[%emt 0:01:04]} 39. Ra1 {[%emt 0:00:15]} Qf7 {[%emt 0:00:25]} 40. Ra3 {[%emt 0:00:10]} Qe7 {[%emt 0:00:24]} 41. Ra1 {[%emt 0:15:06]} Nc6 {[%emt 0:00:00]} 42. Nf3 {[%emt 0:00:00]} Nd4 {[%emt 0:00:48]} 43. Nxd4 {[%emt 0:00:00]} cxd4 {[%emt 0:00:43]} 44. Qa5 {[%emt 0:00:00]} b4 {[%emt 0:03:39]} 45. Rb1 {[%emt 0:00:00]} Qc5 {[%emt 0:09:00]} 46. Qa6 {[%emt 0:00:00]} Qc6 {[%emt 0:00:04]} 47. Qa2 {[%emt 0:00:00]} Ra8 {[%emt 0:02:57]} 48. Qd2 {[%emt 0:00:00]} Qc3 {[%emt 0:00:07]} 49. Qd1 {[%emt 0:00:00]} Ra3 {[%emt 0:00:29]} 50. Rc1 {[%emt 0:00:00]} Bxb3 {[%emt 0:02:23]} 51. Qh5 {[%emt 0:00:00]} g6 {[%emt 0:00:30]} 52. Qh6 {[%emt 0:00:00]} Bc2 {[%emt 0:00:32]} 53. Bh3 {[%emt 0:00:00]} Ra6 {[%emt 0:00:26]} 54. h5 {[%emt 0:00:00]} g5 {[%emt 0:00:36]} 55. Bf5 {[%emt 0:00:00]} Ra1 {[%emt 0:00:32]} 56. Be6+ {[%emt 0:00:00]} 1-0

[Event "GER-ch Youth-U14w 2022"]
[Site "Willingen"]
[Date "2022.06.06"]
[Round "3.4"]
[White "Trunz, Michelle"]
[Black "Stepanjan, Marianne"]
[Result "1-0"]
[ECO "D58"]
[WhiteElo "1708"]
[BlackElo "1489"]
[Annotator "NA RC COMBH"]
[PlyCount "69"]
[EventDate "2022.06.05"]
[EventType "swiss"]
[EventRounds "9"]
[EventCountry "GER"]
[SourceTitle "playchess.com"]
[Source "ChessBase"]
[SourceQuality "1"]
[TimeControl "40/4500+30:900+30"]

1. d4 {[%emt 0:00:00]} d5 {[%emt 0:00:00]} 2. c4 {[%emt 0:00:00]} e6 {[%emt 0:00:00]} 3. Nc3 {[%emt 0:00:00]} Be7 {[%emt 0:00:00]} 4. Nf3 {[%emt 0:00:00]} Nf6 {[%emt 0:00:00]} 5. Bg5 {[%emt 0:00:00]} h6 {[%emt 0:00:00]} 6. Bh4 {[%emt 0:00:00]} b6 {[%emt 0:00:00]} 7. e3 {[%emt 0:00:00]} O-O {[%emt 0:00:00]} 8. Bd3 {[%emt 0:00:00]} Bb7 {[%emt 0:00:00]} 9. O-O {[%emt 0:00:00]} Nbd7 {[%emt 0:00:00]} 10. Qe2 {[%emt 0:00:00]} c5 {[%emt 0:00:18]} 11. Rfd1 {[%emt 0:00:00]} cxd4 {[%emt 0:14:01]} 12. Nxd4 {[%emt 0:00:00]} Nc5 {[%emt 0:10:45]} 13. Ndb5 {[%emt 0:06:20]} a6 {[%emt 0:15:02]} 14. Nd4 {[%emt 0:02:03]} Nxd3 {[%emt 0:03:33]} 15. Qxd3 {[%emt 0:05:29]} dxc4 {[%emt 0:13:47]} 16. Qxc4 {[%emt 0:00:14]} Qc8 {[%emt 0:07:17]} 17. Qb3 {[%emt 0:05:12]} e5 {[%emt 0:04:12]} 18. Nde2 {[%emt 0:11:40]} Qg4 {[%emt 0:04:20]} 19. Bg3 {[%emt 0:00:10]} b5 {[%emt 0:01:20]} 20. f3 {[%emt 0:02:54]} Qg5 {[%emt 0:02:42]} 21. e4 {[%emt 0:04:39]} b4 {[%emt 0:01:47]} 22. Nd5 {[%emt 0:07:03]} Nxd5 {[%emt 0:02:51]} 23. exd5 {[%emt 0:00:31]} Rfd8 {[%emt 0:01:23]} 24. Rd3 {[%emt 0:07:50]} Bd6 {[%emt 0:01:39]} 25. Rad1 {[%emt 0:02:43]} a5 {[%emt 0:00:24]} 26. Bf2 {[%emt 0:06:28]} a4 {[%emt 0:01:25]} 27. Qc2 {[%emt 0:00:45]} Rdc8 {[%emt 0:00:49]} 28. Qd2 {[%emt 0:02:20]} Qxd2 {[%emt 0:00:44]} 29. R3xd2 {[%emt 0:00:14]} Ba6 {[%emt 0:00:26]} 30. Ng3 {[%emt 0:00:40]} Bc4 {[%emt 0:00:35]} 31. Nf5 {[%emt 0:03:58]} Bf8 {[%emt 0:00:40]} 32. d6 {[%emt 0:03:00]} Rd8 {[%emt 0:00:51]} 33. Ne7+ {[%emt 0:06:56]} Kh7 {[%emt 0:00:11]} 34. Nc6 {[%emt 0:00:14]} Bxd6 {[%emt 0:00:44]} 35. Nxd8 {[%emt 0:00:17]} 1-0

[Event "GER-ch Youth-U14w 2022"]
[Site "Willingen"]
[Date "2022.06.06"]
[Round "3.5"]
[White "Bezsonna, Polina"]
[Black "Fock, Madiha"]
[Result "1/2-1/2"]
[ECO "B90"]
[WhiteElo "1511"]
[BlackElo "1468"]
[Annotator "NA RC COMBH"]
[PlyCount "78"]
[EventDate "2022.06.05"]
[EventType "swiss"]
[EventRounds "9"]
[EventCountry "GER"]
[SourceTitle "playchess.com"]
[Source "ChessBase"]
[SourceQuality "1"]
[TimeControl "40/4500+30:900+30"]

1. e4 {[%emt 0:00:00]} c5 {[%emt 0:00:00]} 2. Nf3 {[%emt 0:00:00]} d6 {[%emt 0:00:00]} 3. d4 {[%emt 0:00:00]} cxd4 {[%emt 0:00:00]} 4. Nxd4 {[%emt 0:00:00]} Nf6 {[%emt 0:00:00]} 5. Nc3 {[%emt 0:00:00]} a6 {[%emt 0:00:00]} 6. Nb3 {[%emt 0:00:00]} Nbd7 {[%emt 0:00:00]} 7. Be3 {[%emt 0:00:00]} b5 {[%emt 0:00:00]} 8. a3 {[%emt 0:00:00]} Bb7 {[%emt 0:00:00]} 9. Bd3 {[%emt 0:00:00]} e6 {[%emt 0:00:00]} 10. h3 {[%emt 0:00:00]} Be7 {[%emt 0:00:00]} 11. Qd2 {[%emt 0:01:16]} Rc8 {[%emt 0:00:11]} 12. O-O {[%emt 0:00:50]} d5 {[%emt 0:06:42]} 13. exd5 {[%emt 0:00:46]} Nxd5 {[%emt 0:00:34]} 14. Nxd5 {[%emt 0:04:09]} Bxd5 {[%emt 0:00:13]} 15. Nd4 {[%emt 0:07:21]} O-O {[%emt 0:06:09]} 16. Ne2 {[%emt 0:01:47]} Nf6 {[%emt 0:04:06]} 17. Nc3 {[%emt 0:03:47]} Bb7 {[%emt 0:04:31]} 18. Rfd1 {[%emt 0:03:08]} Qc7 {[%emt 0:03:34]} 19. Qe2 {[%emt 0:02:56]} Qc6 {[%emt 0:05:14]} 20. Qf1 {[%emt 0:02:29]} h6 {[%emt 0:05:16]} 21. Be2 {[%emt 0:05:26]} Qc7 {[%emt 0:04:21]} 22. Rd2 {[%emt 0:06:48]} Ne4 {[%emt 0:06:01]} 23. Nxe4 {[%emt 0:00:30]} Bxe4 {[%emt 0:00:07]} 24. c3 {[%emt 0:02:38]} Rfd8 {[%emt 0:07:41]} 25. Rad1 {[%emt 0:01:54]} Rxd2 {[%emt 0:00:59]} 26. Rxd2 {[%emt 0:00:12]} Rd8 {[%emt 0:00:37]} 27. Rxd8+ {[%emt 0:03:08]} Qxd8 {[%emt 0:00:09]} 28. Qd1 {[%emt 0:02:49]} Qxd1+ {[%emt 0:02:19]} 29. Bxd1 {[%emt 0:00:07]} Bd5 {[%emt 0:00:15]} 30. Kf1 {[%emt 0:00:49]} Kf8 {[%emt 0:00:34]} 31. g3 {[%emt 0:01:43]} Bf6 {[%emt 0:02:53]} 32. Ke2 {[%emt 0:02:45]} Ke8 {[%emt 0:03:43]} 33. Kd2 {[%emt 0:02:58]} Kd7 {[%emt 0:02:17]} 34. Kc2 {[%emt 0:01:09]} Kc6 {[%emt 0:02:11]} 35. Be2 {[%emt 0:00:50]} a5 {[%emt 0:03:18]} 36. b3 {[%emt 0:01:59]} Be4+ {[%emt 0:00:51]} 37. Kd2 {[%emt 0:02:41]} Be7 {[%emt 0:03:59]} 38. b4 {[%emt 0:05:00]} a4 {[%emt 0:01:41]} 39. Bd4 {[%emt 0:06:14]} g6 {[%emt 0:04:47]} 1/2-1/2

[Event "GER-ch Youth-U14w 2022"]
[Site "Willingen"]
[Date "2022.06.06"]
[Round "3.6"]
[White "Haug, Mara"]
[Black "Müller, Cosima"]
[Result "1-0"]
[ECO "B35"]
[WhiteElo "1394"]
[BlackElo "1389"]
[Annotator "NA RC COMBH"]
[PlyCount "69"]
[EventDate "2022.06.05"]
[EventType "swiss"]
[EventRounds "9"]
[EventCountry "GER"]
[SourceTitle "playchess.com"]
[Source "ChessBase"]
[SourceQuality "1"]
[TimeControl "40/4500+30:900+30"]

1. e4 {[%emt 0:00:00]} c5 {[%emt 0:00:00]} 2. Nf3 {[%emt 0:00:00]} Nc6 {[%emt 0:00:00]} 3. d4 {[%emt 0:00:00]} cxd4 {[%emt 0:00:00]} 4. Nxd4 {[%emt 0:00:00]} g6 {[%emt 0:00:00]} 5. Nc3 {[%emt 0:00:00]} Bg7 {[%emt 0:00:00]} 6. Be3 {[%emt 0:00:00]} Nf6 {[%emt 0:00:00]} 7. Bc4 {[%emt 0:00:00]} O-O {[%emt 0:00:00]} 8. O-O {[%emt 0:00:00]} d6 {[%emt 0:00:00]} 9. h3 {[%emt 0:00:00]} Bd7 {[%emt 0:00:00]} 10. Qd2 {[%emt 0:01:32]} Rc8 {[%emt 0:00:00]} 11. Bb3 {[%emt 0:01:21]} a6 {[%emt 0:00:00]} 12. Rad1 {[%emt 0:03:28]} b5 {[%emt 0:00:00]} 13. a3 {[%emt 0:06:08]} Rc7 {[%emt 0:02:07]} 14. f4 {[%emt 0:11:00]} e6 {[%emt 0:06:58]} 15. e5 {[%emt 0:09:30]} Nxd4 {[%emt 0:03:57]} 16. Bxd4 {[%emt 0:03:04]} dxe5 {[%emt 0:01:12]} 17. Bb6 {[%emt 0:03:50]} exf4 {[%emt 0:06:15]} 18. Qd6 {[%emt 0:09:43]} Ne8 {[%emt 0:07:05]} 19. Bxc7 {[%emt 0:03:17]} Nxc7 {[%emt 0:06:46]} 20. Qxd7 {[%emt 0:00:47]} Qb8 {[%emt 0:04:37]} 21. Qc6 {[%emt 0:04:41]} Rc8 {[%emt 0:01:44]} 22. Qf3 {[%emt 0:01:32]} e5 {[%emt 0:05:31]} 23. Rd7 {[%emt 0:01:44]} Rf8 {[%emt 0:04:53]} 24. Qc6 {[%emt 0:02:40]} Ne8 {[%emt 0:04:24]} 25. Ne4 {[%emt 0:01:45]} h6 {[%emt 0:02:53]} 26. Rfd1 {[%emt 0:00:58]} Nf6 {[%emt 0:01:35]} 27. Nxf6+ {[%emt 0:00:43]} Bxf6 {[%emt 0:00:09]} 28. Qxf6 {[%emt 0:00:38]} Qe8 {[%emt 0:01:53]} 29. Qxg6+ {[%emt 0:00:34]} Kh8 {[%emt 0:00:20]} 30. Qxh6+ {[%emt 0:00:09]} Kg8 {[%emt 0:00:08]} 31. Qg6+ {[%emt 0:00:25]} Kh8 {[%emt 0:00:10]} 32. Bxf7 {[%emt 0:00:21]} Rxf7 {[%emt 0:00:28]} 33. Rxf7 {[%emt 0:00:31]} Qg8 {[%emt 0:00:41]} 34. Qh6+ {[%emt 0:00:08]} Qh7 {[%emt 0:00:14]} 35. Rd8# {[%emt 0:00:16]} 1-0

[Event "GER-ch Youth-U14w 2022"]
[Site "Willingen"]
[Date "2022.06.06"]
[Round "3.7"]
[White "Ottlik, Marie"]
[Black "Flierl, Veronika"]
[Result "0-1"]
[ECO "B13"]
[WhiteElo "1442"]
[BlackElo "1427"]
[Annotator "NA RC COMBH"]
[PlyCount "110"]
[EventDate "2022.06.05"]
[EventType "swiss"]
[EventRounds "9"]
[EventCountry "GER"]
[SourceTitle "playchess.com"]
[Source "ChessBase"]
[SourceQuality "1"]
[TimeControl "40/4500+30:900+30"]

1. e4 {[%emt 0:00:00]} c6 {[%emt 0:00:00]} 2. d4 {[%emt 0:00:00]} d5 {[%emt 0:00:00]} 3. exd5 {[%emt 0:00:00]} cxd5 {[%emt 0:00:00]} 4. Bd3 {[%emt 0:00:00]} Nc6 {[%emt 0:00:00]} 5. c3 {[%emt 0:00:00]} Qc7 {[%emt 0:00:00]} 6. Nd2 {[%emt 0:00:00]} Nf6 {[%emt 0:00:00]} 7. Ngf3 {[%emt 0:00:00]} Bg4 {[%emt 0:00:00]} 8. h3 {[%emt 0:05:44]} Bh5 {[%emt 0:00:00]} 9. O-O {[%emt 0:04:36]} e6 {[%emt 0:00:00]} 10. Re1 {[%emt 0:15:25]} Bd6 {[%emt 0:01:22]} 11. Nf1 {[%emt 0:06:34]} O-O {[%emt 0:04:34]} 12. Bg5 {[%emt 0:01:10]} Nd7 {[%emt 0:05:40]} 13. Bh4 {[%emt 0:08:39]} Rfe8 {[%emt 0:12:33]} 14. Bg3 {[%emt 0:05:49]} Nf8 {[%emt 0:03:29]} 15. Bxd6 {[%emt 0:02:24]} Qxd6 {[%emt 0:00:08]} 16. Ng3 {[%emt 0:01:49]} Bg6 {[%emt 0:00:20]} 17. Nh4 {[%emt 0:14:43]} Bxd3 {[%emt 0:03:48]} 18. Qxd3 {[%emt 0:00:06]} Rab8 {[%emt 0:03:48]} 19. Nf3 {[%emt 0:06:03]} Ng6 {[%emt 0:01:29]} 20. Nh5 {[%emt 0:02:33]} b5 {[%emt 0:02:20]} 21. a3 {[%emt 0:00:20]} Na5 {[%emt 0:06:53]} 22. Ne5 {[%emt 0:03:58]} Nc4 {[%emt 0:08:35]} 23. Nxc4 {[%emt 0:01:33]} bxc4 {[%emt 0:00:11]} 24. Qe2 {[%emt 0:01:40]} Rb3 {[%emt 0:01:37]} 25. Rab1 {[%emt 0:01:11]} Reb8 {[%emt 0:00:18]} 26. Qd2 {[%emt 0:00:43]} Qb6 {[%emt 0:03:55]} 27. Re2 {[%emt 0:00:22]} Qd8 {[%emt 0:00:37]} 28. Qe3 {[%emt 0:02:20]} Qe7 {[%emt 0:02:45]} 29. Qg3 {[%emt 0:00:26]} R8b6 {[%emt 0:01:43]} 30. f4 {[%emt 0:00:33]} f5 {[%emt 0:03:11]} 31. Qg5 {[%emt 0:00:32]} Qe8 {[%emt 0:01:46]} 32. g4 {[%emt 0:00:34]} h6 {[%emt 0:00:50]} 33. Qxh6 {[%emt 0:01:13]} gxh6 {[%emt 0:01:00]} 34. Nf6+ {[%emt 0:00:04]} Kf7 {[%emt 0:00:16]} 35. Nxe8 Kxe8 {[%emt 0:00:13]} 36. gxf5 {[%emt 0:00:14]} Nxf4 {[%emt 0:00:23]} 37. Re3 {[%emt 0:00:58]} Ke7 {[%emt 0:01:40]} 38. fxe6 {[%emt 0:00:40]} Rxe6 {[%emt 0:00:45]} 39. Rg3 {[%emt 0:00:50]} Ne2+ {[%emt 0:00:09]} 40. Kg2 {[%emt 0:00:16]} Nxg3 {[%emt 0:00:07]} 41. Kxg3 {[%emt 0:15:06]} Re2 {[%emt 0:15:56]} 42. Kf3 {[%emt 0:00:00]} Rbxb2 {[%emt 0:00:00]} 43. Rg1 {[%emt 0:00:00]} Rf2+ {[%emt 0:00:00]} 44. Kg3 {[%emt 0:00:00]} Rf6 {[%emt 0:00:00]} 45. Re1+ {[%emt 0:00:00]} Kd6 {[%emt 0:00:00]} 46. h4 {[%emt 0:00:00]} Rb3 {[%emt 0:00:00]} 47. Re3 {[%emt 0:00:00]} Rxa3 {[%emt 0:00:00]} 48. h5 {[%emt 0:00:00]} a5 {[%emt 0:00:00]} 49. Kh4 {[%emt 0:00:00]} a4 {[%emt 0:00:00]} 50. Rg3 {[%emt 0:00:00]} Ra1 {[%emt 0:00:00]} 51. Rg2 {[%emt 0:00:00]} a3 {[%emt 0:00:00]} 52. Kh3 {[%emt 0:00:00]} a2 {[%emt 0:00:00]} 53. Kh2 {[%emt 0:00:00]} Rh1+ {[%emt 0:00:00]} 54. Kxh1 {[%emt 0:00:00]} a1=Q+ {[%emt 0:00:00]} 55. Kh2 {[%emt 0:00:00]} Qxc3 {[%emt 0:00:00]} 0-1

[Event "GER-ch Youth-U14w 2022"]
[Site "Willingen"]
[Date "2022.06.06"]
[Round "3.8"]
[White "Englert, Lin"]
[Black "Hoffmann, Sophia"]
[Result "1-0"]
[ECO "D10"]
[WhiteElo "1503"]
[BlackElo "1289"]
[Annotator "NA RC COMBH"]
[PlyCount "69"]
[EventDate "2022.06.05"]
[EventType "swiss"]
[EventRounds "9"]
[EventCountry "GER"]
[SourceTitle "playchess.com"]
[Source "ChessBase"]
[SourceQuality "1"]
[TimeControl "40/4500+30:900+30"]

1. d4 {[%emt 0:00:00]} d5 {[%emt 0:00:00]} 2. c4 {[%emt 0:00:00]} c6 {[%emt 0:00:00]} 3. Nc3 {[%emt 0:00:00]} Nf6 {[%emt 0:00:00]} 4. cxd5 {[%emt 0:00:00]} cxd5 {[%emt 0:00:00]} 5. Bf4 {[%emt 0:00:00]} Nc6 {[%emt 0:00:00]} 6. e3 {[%emt 0:00:00]} e6 {[%emt 0:00:00]} 7. a3 {[%emt 0:00:00]} Bd7 {[%emt 0:00:00]} 8. Nf3 {[%emt 0:00:00]} Be7 {[%emt 0:00:00]} 9. Bd3 {[%emt 0:00:00]} O-O {[%emt 0:00:00]} 10. O-O {[%emt 0:00:00]} Nh5 {[%emt 0:00:00]} 11. Bg3 {[%emt 0:00:00]} Nxg3 {[%emt 0:00:00]} 12. fxg3 {[%emt 0:00:00]} Bg5 {[%emt 0:00:00]} 13. Nxg5 {[%emt 0:00:00]} Qxg5 {[%emt 0:00:00]} 14. Rf4 {[%emt 0:00:00]} Ne7 {[%emt 0:01:19]} 15. Qc2 {[%emt 0:10:44]} Ng6 {[%emt 0:04:39]} 16. Rf3 {[%emt 0:04:10]} Rac8 {[%emt 0:15:44]} 17. Qb3 {[%emt 0:05:11]} Bc6 {[%emt 0:11:57]} 18. Raf1 {[%emt 0:04:57]} e5 {[%emt 0:14:02]} 19. h4 {[%emt 0:04:00]} Qd8 {[%emt 0:13:01]} 20. Bxg6 hxg6 21. dxe5 {[%emt 0:01:59]} Qd7 {[%emt 0:04:44]} 22. Rd1 {[%emt 0:06:52]} Rcd8 {[%emt 0:04:15]} 23. Qb4 {[%emt 0:04:52]} Qe6 {[%emt 0:01:12]} 24. Qd4 {[%emt 0:01:17]} Rfe8 {[%emt 0:02:32]} 25. b4 {[%emt 0:14:14]} Qxe5 {[%emt 0:00:39]} 26. b5 {[%emt 0:01:07]} Bd7 {[%emt 0:01:18]} 27. Qxe5 {[%emt 0:02:54]} Rxe5 {[%emt 0:00:07]} 28. Nxd5 {[%emt 0:01:14]} Ree8 {[%emt 0:01:43]} 29. Nc3 {[%emt 0:03:44]} Bg4 {[%emt 0:01:55]} 30. Rxd8 {[%emt 0:01:02]} Rxd8 {[%emt 0:00:01]} 31. Rf4 {[%emt 0:00:20]} Be6 {[%emt 0:00:24]} 32. Rd4 {[%emt 0:01:16]} Rc8 {[%emt 0:01:33]} 33. Ne4 {[%emt 0:01:25]} Rc2 {[%emt 0:01:35]} 34. Rd8+ {[%emt 0:00:47]} Kh7 {[%emt 0:00:07]} 35. Ng5+ {[%emt 0:00:04]} 1-0

[Event "GER-ch Youth-U14w 2022"]
[Site "Willingen"]
[Date "2022.06.06"]
[Round "3.9"]
[White "Margaryan, Venera"]
[Black "Göb, Franziska"]
[Result "1/2-1/2"]
[ECO "D10"]
[WhiteElo "1477"]
[BlackElo "1362"]
[Annotator "NA RC COMBH"]
[PlyCount "82"]
[EventDate "2022.06.05"]
[EventType "swiss"]
[EventRounds "9"]
[EventCountry "GER"]
[SourceTitle "playchess.com"]
[Source "ChessBase"]
[SourceQuality "1"]
[TimeControl "40/4500+30:900+30"]

1. d4 {[%emt 0:00:00]} d5 {[%emt 0:00:00]} 2. c4 {[%emt 0:00:00]} c6 {[%emt 0:00:00]} 3. cxd5 {[%emt 0:00:00]} cxd5 {[%emt 0:00:00]} 4. Nc3 {[%emt 0:00:00]} Nc6 {[%emt 0:00:00]} 5. Nf3 {[%emt 0:00:00]} Nf6 {[%emt 0:00:00]} 6. Ne5 {[%emt 0:00:00]} Bf5 {[%emt 0:00:00]} 7. e3 {[%emt 0:00:00]} e6 {[%emt 0:00:00]} 8. g4 {[%emt 0:00:00]} Be4 {[%emt 0:00:00]} 9. f3 {[%emt 0:00:00]} Bg6 {[%emt 0:00:00]} 10. h4 {[%emt 0:00:00]} h5 {[%emt 0:04:00]} 11. Nxg6 {[%emt 0:00:00]} fxg6 {[%emt 0:00:29]} 12. g5 {[%emt 0:00:00]} Nd7 {[%emt 0:01:50]} 13. Bd3 {[%emt 0:00:00]} Bd6 {[%emt 0:04:41]} 14. Bxg6+ {[%emt 0:00:00]} Ke7 {[%emt 0:02:05]} 15. f4 {[%emt 0:00:00]} Nb6 {[%emt 0:05:07]} 16. Bxh5 {[%emt 0:00:00]} Nc4 {[%emt 0:03:41]} 17. Bg4 {[%emt 0:03:31]} Bb4 {[%emt 0:05:34]} 18. Qd3 {[%emt 0:04:42]} Qa5 {[%emt 0:05:04]} 19. a3 {[%emt 0:04:04]} Kd7 {[%emt 0:08:36]} 20. Rb1 {[%emt 0:03:59]} Nxa3 {[%emt 0:04:25]} 21. bxa3 {[%emt 0:09:11]} Bxc3+ {[%emt 0:00:53]} 22. Bd2 {[%emt 0:01:31]} Bxd2+ {[%emt 0:00:44]} 23. Qxd2 {[%emt 0:00:06]} Qxd2+ {[%emt 0:00:47]} 24. Kxd2 {[%emt 0:00:04]} Na5 {[%emt 0:02:19]} 25. Kd3 {[%emt 0:02:20]} b6 {[%emt 0:02:11]} 26. a4 {[%emt 0:02:54]} Nc4 {[%emt 0:03:52]} 27. e4 {[%emt 0:03:15]} Kd6 {[%emt 0:03:59]} 28. e5+ {[%emt 0:05:46]} Ke7 {[%emt 0:03:09]} 29. h5 {[%emt 0:08:29]} Rhf8 {[%emt 0:05:24]} 30. Rhf1 {[%emt 0:00:59]} Rab8 {[%emt 0:01:53]} 31. f5 {[%emt 0:02:57]} exf5 {[%emt 0:00:53]} 32. Rxf5 {[%emt 0:00:12]} Rxf5 {[%emt 0:00:41]} 33. Bxf5 {[%emt 0:00:07]} Rf8 {[%emt 0:01:02]} 34. Bg4 {[%emt 0:04:33]} Rf2 {[%emt 0:01:18]} 35. Be2 {[%emt 0:06:06]} Ke6 {[%emt 0:05:47]} 36. g6 {[%emt 0:07:33]} Rg2 {[%emt 0:02:18]} 37. Ra1 {[%emt 0:14:25]} Rg3+ {[%emt 0:02:17]} 38. Kc2 {[%emt 0:01:19]} Rg2 {[%emt 0:02:18]} 39. Re1 {[%emt 0:02:38]} Ne3+ {[%emt 0:01:27]} 40. Kc1 {[%emt 0:02:47]} Nf5 {[%emt 0:02:37]} 41. Bf3 {[%emt 0:00:00]} Rg3 {[%emt 0:00:00]} 1/2-1/2

[Event "GER-ch Youth-U14w 2022"]
[Site "Willingen"]
[Date "2022.06.06"]
[Round "3.10"]
[White "Eichhorn, Mathilda"]
[Black "Bursan, Ana-Maria"]
[Result "1-0"]
[ECO "B17"]
[WhiteElo "1330"]
[BlackElo "1329"]
[Annotator "NA RC COMBH"]
[PlyCount "53"]
[EventDate "2022.06.05"]
[EventType "swiss"]
[EventRounds "9"]
[EventCountry "GER"]
[SourceTitle "playchess.com"]
[Source "ChessBase"]
[SourceQuality "1"]
[TimeControl "40/4500+30:900+30"]

1. e4 {[%emt 0:00:00]} c6 {[%emt 0:00:00]} 2. d4 {[%emt 0:00:00]} d5 {[%emt 0:00:00]} 3. Nc3 {[%emt 0:00:00]} dxe4 {[%emt 0:00:00]} 4. Nxe4 {[%emt 0:00:00]} Nd7 {[%emt 0:00:00]} 5. Nf3 {[%emt 0:00:00]} Ngf6 {[%emt 0:00:00]} 6. Ng3 {[%emt 0:00:00]} Nb6 {[%emt 0:00:39]} 7. Be2 {[%emt 0:00:00]} Bd7 {[%emt 0:06:04]} 8. c3 {[%emt 0:00:51]} Qc7 {[%emt 0:03:06]} 9. Bd2 {[%emt 0:01:40]} O-O-O {[%emt 0:02:56]} 10. Ng5 {[%emt 0:00:56]} Be6 {[%emt 0:04:52]} 11. Nxe6 {[%emt 0:00:38]} fxe6 {[%emt 0:00:49]} 12. Qb3 {[%emt 0:02:43]} Qd6 {[%emt 0:06:33]} 13. O-O-O {[%emt 0:02:01]} h5 {[%emt 0:03:06]} 14. f3 {[%emt 0:01:20]} g6 {[%emt 0:03:36]} 15. Ne4 {[%emt 0:02:25]} Nxe4 {[%emt 0:02:02]} 16. fxe4 {[%emt 0:00:09]} e5 {[%emt 0:02:40]} 17. Be3 {[%emt 0:03:51]} Bh6 {[%emt 0:05:49]} 18. Bxh6 {[%emt 0:02:26]} Rxh6 {[%emt 0:01:24]} 19. Kb1 {[%emt 0:28:06]} Rhh8 {[%emt 0:10:10]} 20. Bf3 {[%emt 0:04:14]} g5 {[%emt 0:07:07]} 21. h3 {[%emt 0:01:25]} Qf6 {[%emt 0:07:46]} 22. Rhf1 {[%emt 0:00:52]} Qg6 {[%emt 0:05:15]} 23. g4 {[%emt 0:04:20]} hxg4 {[%emt 0:03:11]} 24. Bxg4+ {[%emt 0:00:16]} Kc7 {[%emt 0:03:03]} 25. Bf5 {[%emt 0:01:29]} Qg7 {[%emt 0:05:08]} 26. dxe5 {[%emt 0:02:26]} Qxe5 {[%emt 0:01:43]} 27. Rg1 1-0